bitfinex-derivatives/quotes_ETHF0:USTF0_20260201
["timestamp","ask_amount","ask_price","bid_price","bid_amount"]
[1769949373514,3.78933311,2405.4,2404.5,2.441]
[1769949373706,0.16403709,2406.0,2405.0,0.20807]
[1769949373914,0.16403709,2406.6,2405.3,0.20804]
[1769949374107,23.34797512,2406.6,2405.4,2.44]
[1769949374514,27.50877512,2406.6,2405.4,2.44]
[1769949374712,23.34797512,2406.6,2405.4,2.44]
[1769949374911,23.18393803,2406.6,2405.4,6.62]
[1769949375213,0.17275735,2407.1,2405.8,0.208]
[1769949375414,23.18393803,2407.0,2405.8,0.21165257]
[1769949376611,0.16343277,2406.9,2405.8,0.21165257]
[1769949376809,4.1608,2406.8,2405.8,0.21165257]
[1769949377013,23.18393803,2407.0,2405.8,0.21165257]
[1769949377209,23.18393803,2407.0,2405.9,0.20799]
[1769949377410,4.67152657,2407.7,2406.3,0.15130198]
[1769949377715,23.18393803,2407.6,2406.4,4.52]
[1769949377911,4.1608,2407.2,2406.4,4.52]
[1769949378110,4.1608,2406.9,2406.4,4.52]
[1769949378310,23.18393803,2407.6,2406.4,2.63714925]
[1769949378610,23.18393803,2407.6,2406.5,0.15130198]
[1769949378816,7.38068447,2408.3,2406.5,0.15130198]
[1769949379017,6.11428802,2409.3,2407.1,0.15130198]
[1769949379308,11.68459226,2409.2,2407.7,0.15130198]
[1769949379615,6.11428802,2410.1,2407.9,0.15130198]
[1769949379616,11.53593803,2409.1,2407.9,0.15130198]
[1769949379810,0.14865423,2409.1,2407.9,0.15130198]
[1769949380018,0.14865423,2408.9,2407.9,0.15130198]
[1769949380414,11.53593803,2408.8,2407.9,0.15130198]
[1769949380615,0.14865423,2408.7,2407.8,4.519]
[1769949381117,0.14865423,2408.5,2407.8,4.519]
[1769949381318,0.14865423,2408.5,2407.8,2.079]
[1769949381515,0.14865423,2408.3,2407.8,2.079]
[1769949381813,0.14865423,2408.3,2407.3,2.439]
[1769949382013,9.9285231,2408.2,2407.3,2.439]
[1769949382213,0.14865423,2408.2,2407.3,2.439]
[1769949382514,9.77986887,2408.1,2407.3,2.59030198]
[1769949382707,0.14865423,2408.0,2406.7,0.15130198]
[1769949382906,0.14865423,2407.9,2406.6,2.439]
[1769949383416,0.14865423,2407.7,2406.5,2.079]
[1769949383816,0.14865423,2407.5,2406.5,2.08232713]
[1769949384217,0.14865423,2407.3,2406.5,2.08232713]
[1769949384415,0.14865423,2407.3,2406.1,2.59030198]
[1769949384613,2.438,2407.8,2406.1,2.59030198]
[1769949384614,0.14865423,2407.1,2406.1,2.59030198]
[1769949384919,0.14865423,2407.4,2406.2,0.15130198]
[1769949385318,5.61854174,2407.3,2406.2,0.15130198]
[1769949385620,5.61854174,2407.3,2406.2,0.15644157]
[1769949392022,0.14865423,2407.2,2406.3,0.15130198]
[1769949392416,5.61854174,2407.1,2406.3,0.15130198]
[1769949393719,0.14865423,2407.5,2406.3,0.15130198]
[1769949393914,5.61854174,2407.4,2406.3,0.15130198]
[1769949395521,0.14865423,2407.3,2406.3,0.15130198]
[1769949395924,5.76719597,2407.2,2406.3,0.15130198]
[1769949396222,0.14865423,2407.8,2406.3,0.15130198]
[1769949396422,0.14865423,2407.6,2406.3,0.15130198]
[1769949397024,0.14865423,2407.4,2406.3,0.15130198]
[1769949398625,0.15218004,2407.2,2406.3,0.15130198]
[1769949399026,0.15218004,2407.0,2406.2,0.00513959]
[1769949399415,5.77072178,2406.9,2406.2,0.00513959]
[1769949399614,0.15218004,2406.9,2406.2,0.00513959]
[1769949399821,5.61854174,2406.8,2406.2,0.00513959]
[1769949401622,5.77072178,2406.8,2406.2,0.00513959]
[1769949402424,0.15218004,2406.6,2405.8,2.079]
[1769949402718,0.15218004,2406.9,2406.0,0.15313802]
[1769949402920,3.72510059,2406.8,2406.0,0.15313802]
[1769949403122,3.71553988,2406.7,2406.0,0.15313802]
[1769949403320,5.77072178,2406.8,2406.0,0.15747766]
[1769949403522,3.71554305,2406.7,2406.0,0.15747766]
[1769949403723,5.77072178,2406.8,2406.0,0.15747766]
[1769949404020,36.67299208,2407.6,2406.0,0.15747766]
[1769949404225,3.68733769,2407.5,2406.0,0.15747766]
[1769949404425,3.68733769,2407.4,2406.0,0.15747766]
[1769949404622,5.61854174,2407.7,2406.0,0.15747766]
[1769949404816,3.68787053,2407.6,2406.0,0.15747766]
[1769949405018,5.61854174,2407.7,2406.2,0.15087972]
[1769949405727,36.67690318,2408.1,2406.2,0.15087972]
[1769949405930,5.61854174,2407.9,2406.2,0.15087972]
[1769949406129,3.68137962,2407.8,2406.2,0.15087972]
[1769949406324,3.68137962,2407.7,2406.2,0.15087972]
[1769949406525,0.15593013,2407.8,2406.2,0.15087972]
[1769949406725,3.83809398,2407.7,2406.2,0.15087972]
[1769949406926,0.15593013,2407.7,2406.2,0.15087972]
[1769949407123,5.61854174,2407.6,2406.2,0.15087972]
[1769949407329,5.77447187,2408.0,2406.2,0.15087972]
[1769949407627,3.682191,2407.9,2406.2,0.15087972]
[1769949407830,3.682191,2407.8,2406.2,0.15087972]
[1769949408128,3.682191,2407.7,2406.2,0.15087972]
[1769949408329,5.77447187,2408.0,2406.2,0.15087972]
[1769949408530,3.68207605,2407.9,2406.2,0.15087972]
[1769949408830,3.68207605,2407.8,2406.2,0.15087972]
[1769949409034,5.61854174,2408.0,2406.5,0.15087972]
[1769949409330,5.61854174,2407.8,2406.5,0.15087972]
[1769949409521,0.15593013,2407.9,2406.5,0.15087972]
[1769949409926,5.77447187,2407.8,2406.5,0.15087972]
[1769949410128,3.684834,2407.7,2406.5,0.15087972]
[1769949410326,5.61854174,2407.7,2406.5,0.15087972]
[1769949411131,3.68729049,2407.6,2406.5,0.15087972]
[1769949411331,5.61854174,2407.7,2406.5,0.15087972]
[1769949411532,0.15593013,2407.5,2406.7,0.15087972]
[1769949411830,5.61854174,2407.7,2406.9,0.15087972]
[1769949412027,5.61854174,2407.5,2406.9,0.15087972]
[1769949412227,5.61854174,2407.7,2406.9,0.15087972]
[1769949412626,0.15593013,2407.8,2406.9,0.15087972]
[1769949412832,5.61854174,2407.6,2406.9,0.15087972]
[1769949413728,0.15593013,2407.5,2406.8,2.078]
[1769949413929,3.90569755,2407.4,2406.8,2.078]
[1769949414233,0.15593013,2407.3,2406.8,2.078]
[1769949414427,5.77447187,2407.6,2406.8,2.078]
[1769949414622,5.77447187,2407.6,2406.8,2.22887972]
[1769949414822,5.61854174,2407.6,2406.9,0.15087972]
[1769949415023,0.0039111,2408.1,2406.9,0.15087972]
[1769949415228,9.32019664,2408.0,2406.9,0.15087972]
[1769949415535,3.7016549,2407.9,2406.9,0.15087972]
[1769949415733,5.61854174,2408.0,2406.9,0.15087972]
[1769949415933,3.70168168,2407.9,2406.9,0.15087972]
[1769949416132,5.61854174,2408.0,2406.9,0.15087972]
[1769949416334,3.70137518,2407.9,2406.9,0.15087972]
[1769949416528,5.61854174,2408.0,2406.9,0.15087972]
[1769949418428,0.0039111,2408.1,2406.9,0.15087972]
[1769949418734,5.45175687,2408.1,2406.9,0.15087972]
[1769949420034,0.15593013,2408.0,2406.9,0.15087972]
[1769949420632,0.15593013,2407.8,2406.9,0.15087972]
[1769949421231,5.29191564,2407.7,2406.9,0.15087972]
[1769949421427,0.15593013,2407.6,2406.8,2.078]
[1769949421627,0.15593013,2407.6,2406.8,1.58806085]
[1769949421833,3.66475126,2407.5,2406.6,2.957]
[1769949422030,3.66475126,2407.4,2406.6,2.957]
[1769949422426,36.67299208,2407.8,2406.6,2.957]
[1769949422736,3.9229056,2407.7,2406.4,2.437]
[1769949422929,3.66498996,2407.6,2406.4,2.437]
[1769949423130,3.66498996,2407.5,2406.4,2.437]
[1769949423330,3.66498996,2407.4,2406.4,2.437]
[1769949423533,0.25791564,2407.7,2406.4,2.437]
[1769949423732,3.66446726,2407.6,2406.4,2.437]
[1769949423935,3.66446726,2407.5,2406.4,2.437]
[1769949424134,3.66446726,2407.4,2406.4,2.437]
[1769949424334,0.25791564,2407.5,2406.4,2.437]
[1769949424534,36.67299208,2407.7,2406.4,2.17908436]
[1769949425334,2.46514678,2407.5,2406.4,2.17908436]
[1769949425833,2.46514678,2407.2,2406.3,2.077]
[1769949426436,2.46514678,2407.4,2406.3,2.077]
[1769949426935,2.46514678,2407.7,2406.3,2.24033027]
[1769949427135,2.46514678,2407.9,2406.4,0.16333027]
[1769949427343,2.46514678,2407.8,2406.5,2.60076818]
[1769949427540,2.46514678,2407.6,2406.5,2.437]
[1769949427835,2.46514678,2407.6,2406.3,2.24176818]
[1769949427836,2.46514678,2407.4,2406.3,2.078]
[1769949428041,2.46514678,2407.1,2406.3,2.078]
[1769949428234,2.46514678,2407.0,2406.3,2.078]
[1769949428737,2.46514678,2407.1,2406.3,2.078]
[1769949428933,2.46514678,2407.0,2406.3,2.078]
[1769949429735,2.46514678,2407.1,2406.3,2.078]
[1769949430139,0.00088349,2407.0,2406.3,2.078]
[1769949430340,0.00088349,2407.0,2406.3,2.07711651]
[1769949430535,0.00088349,2407.0,2405.2,3.88146788]
[1769949430737,2.46514678,2406.2,2404.6,2.24131787]
[1769949430938,2.46514678,2406.1,2404.7,2.437]
[1769949431141,2.46514678,2405.9,2404.7,2.437]
[1769949431342,2.46514678,2406.0,2404.7,2.437]
[1769949431538,2.46994836,2406.0,2404.7,2.44207906]
[1769949431846,2.46514678,2405.8,2404.7,2.44207906]
[1769949432139,2.46514678,2405.5,2404.7,0.00507906]
[1769949432348,2.46994836,2406.0,2404.7,0.00507906]
[1769949432540,2.46514678,2405.6,2404.7,0.00507906]
[1769949432742,2.46514678,2404.9,2403.4,2.078]
[1769949432949,2.46514678,2404.9,2402.3,18.26715001]
[1769949432950,2.46514678,2404.3,2402.7,2.438]
[1769949433142,2.46514678,2404.1,2402.7,2.438]
[1769949433444,42.27413886,2405.0,2402.8,0.16302547]
[1769949433642,42.27413886,2405.0,2403.2,0.16302547]
[1769949433643,3.13960993,2405.0,2403.2,0.16302547]
[1769949434044,0.00474875,2404.9,2403.2,0.16302547]
[1769949434239,0.00474875,2404.9,2403.4,0.1609435]
[1769949434438,0.00474875,2404.9,2403.5,4.516]
[1769949434636,0.00474875,2404.9,2403.6,0.1609435]
[1769949434942,0.00360993,2405.0,2403.9,0.1609435]
[1769949435343,0.00360993,2405.0,2403.8,0.0094187]
[1769949435344,0.00360993,2405.0,2404.0,0.1703622]
[1769949435538,0.00474875,2404.9,2403.8,2.438]
[1769949436039,0.00474875,2404.9,2403.3,2.2399435]
[1769949436346,0.00474875,2404.9,2403.5,0.16105869]
[1769949436941,0.00474875,2404.9,2403.7,0.16105869]
[1769949437641,0.00474875,2404.9,2403.7,0.17047739]
[1769949437842,0.00360993,2405.0,2403.8,0.0094187]
[1769949438049,0.00360993,2405.0,2403.9,0.16105869]
[1769949438542,0.00360993,2405.0,2404.0,0.17015797]
[1769949438742,0.00360993,2405.0,2404.0,0.16073927]
[1769949438942,0.00360993,2405.0,2404.0,0.17015797]
[1769949439545,0.00360993,2405.0,2404.1,0.0094187]
[1769949439748,0.00360993,2405.0,2404.2,2.439]
[1769949440347,0.0063651,2405.5,2404.4,0.0094187]
[1769949440549,0.0063651,2405.5,2404.3,2.23913533]
[1769949441243,0.0115529,2405.5,2404.3,2.23913533]
[1769949441543,0.0115529,2405.5,2404.4,0.16013533]
[1769949441747,0.0063651,2405.4,2404.4,0.16013533]
[1769949442046,0.0063651,2405.4,2404.3,2.079]
[1769949444145,0.0051878,2405.5,2404.7,0.16078785]
[1769949444353,0.00506004,2406.1,2404.7,0.1641412]
[1769949445352,0.00991724,2406.1,2404.7,0.1641412]
[1769949445652,0.00506004,2405.9,2404.7,0.1641412]
[1769949446852,0.00506004,2405.9,2404.7,0.00335335]
[1769949447853,0.00506004,2405.9,2404.7,0.16375774]
[1769949449054,0.00506004,2405.9,2404.9,0.16050839]
[1769949449554,0.00506004,2405.9,2404.9,0.16992709]
[1769949449953,0.00506004,2405.9,2405.0,0.0094187]
[1769949450154,3.84546835,2406.0,2405.0,0.17028668]
[1769949450354,3.84546835,2406.0,2405.1,0.17028668]
[1769949450751,3.84546835,2406.0,2405.1,0.16086798]
[1769949451154,3.85036813,2406.0,2405.0,2.44]
[1769949452354,3.85036813,2406.0,2405.0,2.4494187]
[1769949453450,3.85036813,2406.0,2405.0,2.60939825]
[1769949455256,3.85036813,2406.0,2405.1,0.0094187]
[1769949455451,3.84546835,2406.0,2405.1,0.15993556]
[1769949455657,3.84546835,2406.0,2405.4,0.0094187]
[1769949455955,3.84546835,2405.9,2405.5,0.15993556]
[1769949456158,3.84546835,2405.9,2405.5,0.0094187]
[1769949456358,3.84546835,2405.9,2405.7,0.0094187]
[1769949456656,3.84546835,2405.9,2405.5,0.0094187]
[1769949457157,3.84546835,2405.9,2405.2,0.15987238]
[1769949460854,3.85393892,2405.9,2405.0,2.44]
[1769949461058,2.46514678,2405.8,2405.0,2.44]
[1769949461858,2.46514678,2405.7,2405.0,2.44]
[1769949462059,3.84546835,2405.6,2405.0,2.44]
[1769949463267,3.84546835,2405.6,2405.0,2.60156916]
[1769949463467,6.31061513,2405.6,2405.0,2.60156916]
[1769949463668,3.84546835,2405.6,2405.1,0.16156916]
[1769949465170,2.46514678,2405.9,2405.1,0.16156916]
[1769949466471,4.48761513,2406.0,2405.1,0.16156916]
[1769949467268,2.46514678,2405.9,2405.1,0.16156916]
[1769949467971,4.48761513,2406.0,2405.1,0.16156916]
[1769949468371,2.46514678,2405.8,2405.0,2.59852556]
[1769949468769,2.46514678,2405.7,2405.0,2.59852556]
[1769949468972,2.46514678,2405.8,2405.1,0.15852556]
[1769949469469,2.46514678,2405.7,2405.1,0.15852556]
[1769949469665,2.46514678,2405.7,2405.0,2.44]
[1769949469870,2.46514678,2405.6,2405.0,2.44]
[1769949470675,2.46514678,2405.7,2405.0,2.44]
[1769949473167,2.46514678,2405.7,2405.0,2.5973959]
[1769949473368,2.46514678,2405.8,2405.0,2.5973959]
[1769949473675,2.46514678,2405.7,2405.0,2.5973959]
[1769949474076,4.48761513,2405.7,2405.0,2.5973959]
[1769949475274,4.48761513,2405.7,2405.1,0.15691678]
[1769949477280,2.46514678,2405.9,2405.1,0.15691678]
[1769949477576,2.46514678,2405.8,2405.1,0.15691678]
[1769949477774,2.46514678,2405.9,2405.1,0.15691678]
[1769949478280,2.46514678,2405.8,2405.1,0.15691678]
[1769949478476,2.46514678,2405.9,2405.1,0.15691678]
[1769949480274,2.46514678,2405.9,2405.0,2.44]
[1769949480275,0.0107859,2405.8,2405.0,2.4292141]
[1769949480472,7.38068447,2405.6,2404.3,2.49265726]
[1769949480668,7.38068447,2405.6,2403.9,0.16342283]
[1769949480669,2.47849832,2404.4,2403.9,0.16342283]
[1769949480882,2.47849832,2404.3,2404.0,2.05138631]
[1769949481076,2.47849832,2404.5,2404.1,4.15822097]
[1769949481271,2.47849832,2404.5,2404.0,6.37303011]
[1769949481476,0.00405816,2404.5,2404.1,4.15822097]
[1769949482077,0.00405816,2404.5,2404.0,2.21880854]
[1769949482078,0.14736199,2405.6,2404.3,0.15078983]
[1769949482276,0.14736199,2405.8,2404.3,0.15078983]
[1769949483183,0.15093765,2405.8,2404.3,0.15078983]
[1769949483385,0.15093765,2405.8,2404.4,2.439]
[1769949483981,0.14736199,2405.7,2404.5,0.15078983]
[1769949492385,0.14736199,2405.7,2404.5,0.15247374]
[1769949492789,0.14870557,2405.4,2404.1,0.15247374]
[1769949493088,0.14870557,2405.4,2404.0,0.0039994]
[1769949493885,0.14870557,2405.2,2404.0,0.0039994]
[1769949494084,0.14870557,2405.1,2404.0,0.0039994]
[1769949495890,0.14870557,2405.1,2404.0,0.15647314]
[1769949496288,0.14870557,2405.1,2404.0,0.0039994]
[1769949497090,0.14870557,2405.1,2404.0,0.15647314]
[1769949498988,0.14870557,2404.9,2404.0,0.15647314]
[1769949499488,0.14870557,2404.7,2404.0,0.0039994]
[1769949500578,0.14870557,2404.7,2403.7,0.15247374]
[1769949500986,2.02246835,2404.8,2403.7,0.15247374]
[1769949501380,0.14870557,2405.3,2403.7,0.15247374]
[1769949501583,2.02246835,2405.4,2403.7,0.15559693]
[1769949502288,0.14870557,2405.3,2403.8,0.15247374]
[1769949503183,2.02246835,2405.4,2403.8,0.15247374]
[1769949503792,2.17117392,2405.4,2403.8,0.15247374]
[1769949504694,2.17117392,2405.4,2404.0,0.15247374]
[1769949507096,0.14564413,2405.3,2404.0,0.15247374]
[1769949508396,2.02246835,2405.4,2404.0,0.15247374]
[1769949510491,2.02246835,2405.4,2404.3,0.15247374]
[1769949510687,2.02246835,2405.4,2404.5,0.15247374]
[1769949512493,2.17117392,2405.4,2404.5,0.15247374]
[1769949512698,1.0,2405.3,2404.5,0.15247374]
[1769949514098,0.14870557,2405.2,2403.6,5.09311242]
[1769949514399,0.14870557,2405.2,2403.4,15.33362774]
[1769949514400,0.14870557,2404.7,2403.7,0.15559693]
[1769949514599,37.06226775,2405.0,2403.9,0.15247374]
[1769949514799,37.06226775,2405.0,2404.0,0.15247374]
[1769949514994,37.21097332,2405.0,2404.0,3.88006318]
[1769949515195,37.21097332,2405.0,2404.1,3.72758944]
[1769949515897,0.14870557,2405.0,2404.1,3.72758944]
[1769949516299,0.14870557,2405.0,2404.0,0.15247374]
[1769949519994,1.14849845,2405.3,2404.1,0.15825065]
[1769949520300,1.14849845,2405.3,2403.8,2.44]
[1769949520301,1.0,2405.3,2404.3,0.15825065]
[1769949520696,1.0,2405.3,2404.5,0.15825065]
[1769949521099,1.0,2405.3,2404.5,3.88584009]
[1769949523701,1.0,2405.3,2404.6,3.88584009]
[1769949523900,1.0,2405.3,2404.6,0.15825065]
[1769949524097,0.14849845,2405.4,2404.6,2.88584009]
[1769949524406,0.14849845,2405.4,2404.1,4.94063868]
[1769949524601,0.14849845,2405.4,2404.2,2.88584009]
[1769949524796,0.14849845,2405.4,2404.3,2.88584009]
[1769949525198,0.14849845,2405.4,2404.4,2.88584009]
[1769949525404,0.14849845,2405.4,2404.3,2.88584009]
[1769949525903,0.14849845,2405.4,2404.4,2.88584009]
[1769949526096,0.14849845,2405.4,2404.3,2.88584009]
[1769949526397,37.2107662,2405.4,2404.4,0.15303045]
[1769949526597,0.1471172,2405.3,2404.4,3.03887054]
[1769949526802,0.1471172,2405.3,2404.5,0.15303045]
[1769949526999,0.1471172,2405.3,2404.5,3.03887054]
[1769949527407,0.1471172,2405.3,2404.5,0.15303045]
[1769949527709,0.1471172,2405.3,2404.2,0.15303045]
[1769949528003,0.1471172,2405.2,2404.2,0.15303045]
[1769949528205,0.1471172,2404.9,2403.8,2.44]
[1769949528406,0.1471172,2404.7,2403.8,2.44]
[1769949529302,4.9426867,2405.1,2403.9,0.15303045]
[1769949529303,37.20938495,2405.0,2403.9,0.15303045]
[1769949529503,0.1471172,2405.3,2404.3,0.15303045]
[1769949529900,0.1471172,2405.3,2404.4,2.88584009]
[1769949531606,0.1471172,2405.3,2404.3,0.15303045]
[1769949532807,0.1471172,2405.3,2404.6,0.15303045]
[1769949533300,0.1471172,2405.3,2404.7,2.88584009]
[1769949533507,37.20938495,2405.7,2404.8,0.15303045]
[1769949533705,0.1471172,2405.7,2404.8,3.03887054]
[1769949533906,0.1471172,2405.7,2404.9,3.03887054]
[1769949534108,0.1471172,2405.7,2404.9,0.15303045]
[1769949534405,37.20938495,2406.0,2405.2,2.88584009]
[1769949534599,0.1471172,2406.0,2405.0,0.15303045]
[1769949534799,0.1471172,2406.0,2405.2,0.15303045]
[1769949535298,0.1471172,2406.0,2405.2,3.03887054]
[1769949535504,0.1523212,2406.0,2405.2,3.03887054]
[1769949536400,0.1523212,2406.0,2405.3,2.88584009]
[1769949536601,0.005204,2406.0,2405.3,3.03887054]
[1769949536806,0.1523212,2406.0,2405.3,2.88584009]
[1769949537108,0.1471172,2405.6,2403.9,2.08]
[1769949537304,0.1471172,2405.3,2404.1,0.15303045]
[1769949537504,0.1471172,2405.3,2404.2,0.15303045]
[1769949537804,0.1471172,2405.0,2403.9,2.08]
[1769949538008,0.1471172,2404.7,2403.9,2.08]
[1769949538401,0.1471172,2404.5,2403.3,0.15303045]
[1769949538602,0.1471172,2404.4,2403.3,0.15303045]
[1769949538998,0.1471172,2404.4,2403.3,3.03887054]
[1769949539403,0.1471172,2404.4,2403.3,3.04301991]
[1769949539707,0.1471172,2404.3,2403.4,2.88584009]
[1769949539907,0.15035943,2404.3,2403.5,2.88584009]
[1769949540208,0.15035943,2404.3,2403.3,0.15717982]
[1769949542208,2.61756613,2404.3,2403.3,3.04301991]
[1769949542406,0.15035943,2404.3,2403.3,3.04301991]
[1769949542806,0.00324223,2404.3,2403.4,0.15303045]
[1769949543008,0.00324223,2404.3,2403.9,0.15303045]
[1769949543509,0.00324223,2404.3,2404.0,2.88584009]
[1769949543908,0.00324223,2404.3,2404.1,2.88584009]
[1769949544115,0.00324223,2404.3,2404.0,2.88584009]
[1769949544611,0.00324223,2404.3,2404.2,2.88584009]
[1769949544914,0.1471172,2404.7,2404.1,2.88584009]
[1769949545212,0.1471172,2404.7,2403.7,0.15303045]
[1769949545411,0.1471172,2404.7,2403.8,2.88584009]
[1769949545710,0.1510876,2404.7,2403.8,2.88584009]
[1769949545910,0.1510876,2404.7,2403.9,2.88584009]
[1769949546103,0.1510876,2404.7,2403.8,2.88584009]
[1769949546501,0.1510876,2404.7,2403.9,2.88584009]
[1769949546707,2.6143239,2404.5,2403.4,0.15303045]
[1769949546909,0.1471172,2404.4,2403.4,0.15303045]
[1769949547109,0.1471172,2404.3,2403.5,2.88584009]
[1769949547510,0.1471172,2404.3,2403.4,0.15303045]
[1769949547710,0.1471172,2404.3,2403.3,0.00414937]
[1769949547711,2.6143239,2404.3,2403.3,0.00414937]
[1769949547912,0.1476528,2404.1,2403.3,0.00414937]
[1769949548515,0.1476528,2404.0,2403.3,0.00414937]
[1769949548908,0.1476528,2404.0,2403.3,2.88998946]
[1769949550118,0.1476528,2403.9,2402.8,2.23735841]
[1769949550317,0.1476528,2403.7,2402.8,2.08]
[1769949550720,0.1476528,2403.5,2402.8,2.08]
[1769949551219,0.1476528,2403.5,2402.9,2.88584009]
[1769949551815,0.1476528,2403.5,2403.0,2.88584009]
[1769949552025,0.1476528,2403.5,2402.9,2.88584009]
[1769949552422,0.1476528,2403.5,2402.9,2.72575598]
[1769949552623,0.1476528,2403.5,2402.8,0.00512799]
[1769949553122,0.1476528,2403.5,2402.4,0.16330776]
[1769949553827,37.06226775,2403.8,2402.5,0.16330776]
[1769949554015,9.15793491,2404.5,2402.6,0.16330776]
[1769949554016,37.06226775,2404.0,2402.6,0.16330776]
[1769949554218,40.60526775,2404.0,2402.6,0.16762031]
[1769949554423,40.60526775,2404.0,2402.9,0.16326114]
[1769949555823,2.02246835,2403.9,2402.9,0.16326114]
[1769949556222,2.02246835,2403.9,2402.9,2.88901712]
[1769949558226,2.02246835,2403.9,2402.9,0.16326114]
[1769949558527,2.02246835,2403.9,2402.9,2.88901712]
[1769949558725,2.23063835,2403.9,2402.6,0.16795944]
[1769949559029,2.23063835,2403.9,2402.6,2.89371542]
[1769949559622,0.2082,2403.5,2402.6,0.00431255]
[1769949559823,3.572,2403.4,2401.9,0.16364689]
[1769949560024,37.06226775,2403.3,2402.0,0.16364689]
[1769949560219,3.78223,2403.2,2402.3,0.16360978]
[1769949560420,3.78223,2403.2,2402.0,2.72575598]
[1769949560625,3.78223,2403.2,2402.1,2.72575598]
[1769949560830,3.78223,2403.2,2402.2,2.72575598]
[1769949561028,3.78223,2403.2,2402.3,2.72575598]
[1769949561327,3.78223,2403.2,2402.2,2.72575598]
[1769949562033,3.78223,2403.2,2401.1,0.20841]
[1769949562034,37.27056775,2402.4,2400.8,0.16360978]
[1769949562226,42.39021393,2402.3,2400.8,0.16360978]
[1769949562423,9.842,2402.3,2401.0,0.16450107]
[1769949562624,10.05031,2402.3,2401.0,0.16450107]
[1769949562924,0.20832,2402.2,2401.0,0.16761439]
[1769949563129,0.20832,2402.2,2401.0,0.00311332]
[1769949563130,0.07248664,2402.2,2401.0,0.00311332]
[1769949563524,0.07248664,2402.2,2400.0,2.442]
[1769949563525,0.20835,2401.8,2400.4,0.16450107]
[1769949563725,3.596,2401.7,2400.4,0.16450107]
[1769949564129,3.596,2401.7,2400.6,2.72575598]
[1769949564323,0.20837,2401.6,2400.6,2.72575598]
[1769949564529,0.20837,2401.6,2400.7,2.72575598]
[1769949565027,0.20837,2401.6,2400.6,0.00329184]
[1769949565528,0.20837,2401.6,2400.1,0.16546022]
[1769949565529,0.20839,2401.3,2399.8,0.16546022]
[1769949565730,4.524,2401.2,2399.8,0.16546022]
[1769949565930,0.20839,2401.3,2400.0,2.72575598]
[1769949566231,4.524,2401.2,2400.0,2.89167322]
[1769949566430,4.7324,2401.2,2400.1,2.72575598]
[1769949566622,4.7324,2401.2,2400.0,0.17039542]
[1769949566623,0.20842,2401.0,2400.0,0.00447818]
[1769949566822,0.20844,2400.8,2400.0,0.00447818]
[1769949567023,2.443,2400.7,2399.4,0.16591724]
[1769949567324,0.20845,2400.7,2399.6,0.16591724]
[1769949567529,2.443,2400.6,2399.6,0.16591724]
[1769949567728,2.443,2400.6,2399.9,2.72575598]
[1769949568025,2.44636192,2400.6,2399.9,2.72888384]
[1769949568233,2.44636192,2400.6,2400.1,2.72575598]
[1769949568731,2.44636192,2400.6,2400.2,2.72575598]
[1769949569234,2.44636192,2400.6,2400.3,0.90310297]
[1769949569423,2.44636192,2400.6,2400.2,0.90310297]
[1769949569826,2.44636192,2400.6,2399.9,0.00312786]
[1769949571134,2.083,2401.8,2399.9,0.16902111]
[1769949571432,2.443,2401.7,2399.9,0.16902111]
[1769949571932,0.20841,2401.1,2399.9,0.16902111]
[1769949572130,0.21243281,2401.1,2399.9,0.16902111]
[1769949572332,0.20843,2400.9,2399.9,0.16902111]
[1769949572725,0.20845,2400.7,2399.9,0.00312786]
[1769949572923,0.20845,2400.6,2399.9,0.00312786]
[1769949573331,0.20847,2400.5,2399.9,0.00312786]
[1769949573526,2.65247,2400.5,2399.9,0.00312786]
[1769949574426,0.20847,2400.5,2399.9,0.16712808]
[1769949577426,0.00402281,2401.1,2399.9,0.16712808]
[1769949577825,0.00366213,2401.0,2399.9,0.16712808]
[1769949578923,0.20844,2400.8,2399.9,0.16712808]
[1769949581737,2.44802281,2401.1,2399.9,0.16712808]
[1769949583127,0.00402281,2401.1,2399.9,0.16712808]
[1769949583735,3.463,2401.0,2399.9,0.16712808]
[1769949588144,0.00956236,2400.8,2399.6,0.1586371]
[1769949588446,3.40484529,2400.7,2399.6,0.1586371]
[1769949588840,0.00984529,2400.6,2399.6,0.1586371]
[1769949589146,0.00984529,2400.6,2399.6,0.1618655]
[1769949589445,0.00984529,2400.6,2399.6,0.0032284]
[1769949590341,0.00994703,2400.5,2399.6,0.0032284]
[1769949591339,0.00994703,2400.3,2399.6,0.0032284]
[1769949591545,0.00994703,2400.3,2399.2,0.15844476]
[1769949592344,4.9426867,2400.5,2399.2,0.15844476]
[1769949592543,4.9426867,2400.5,2399.2,0.16273786]
[1769949593347,4.9426867,2400.4,2399.2,0.16273786]
[1769949594842,4.9426867,2400.6,2399.2,0.16273786]
[1769949596248,4.95207977,2400.6,2399.2,0.16273786]
[1769949597648,4.9426867,2400.5,2399.2,0.16273786]
[1769949598946,5.1511367,2400.7,2399.4,0.15873493]
[1769949599648,0.20845,2400.7,2399.5,0.15873493]
[1769949599847,37.0579568,2400.6,2399.5,0.15873493]
[1769949600449,0.01026929,2400.5,2399.5,0.15873493]
[1769949600650,37.06822609,2400.3,2399.5,0.15873493]
[1769949602640,37.0579568,2400.4,2399.5,0.15873493]
[1769949604348,0.01201358,2400.2,2399.2,0.16170459]
[1769949604550,0.01201358,2400.0,2399.2,0.16170459]
[1769949604946,37.06997038,2400.0,2399.2,0.0042931]
[1769949605152,0.01201358,2400.0,2399.2,0.0042931]
[1769949605548,37.06997038,2400.0,2399.2,0.0042931]
[1769949606045,0.01201358,2399.9,2399.2,0.0042931]
[1769949606252,37.06997038,2399.9,2399.2,0.0042931]
[1769949606650,37.0579568,2399.9,2399.2,0.16133271]
[1769949606949,37.0579568,2400.3,2399.2,0.16133271]
[1769949609254,37.0579568,2400.7,2399.4,0.15703878]
[1769949609850,4.95550906,2400.9,2399.5,0.15703878]
[1769949610956,3.299,2400.8,2399.5,0.15703878]
[1769949611857,3.299,2400.8,2399.6,0.15731135]
[1769949613455,4.9426867,2400.9,2399.6,0.15731135]
[1769949613656,8.4056867,2401.0,2399.6,0.15731135]
[1769949613858,0.00402281,2401.1,2399.9,0.15729891]
[1769949614053,0.0123021,2401.0,2399.9,0.15729891]
[1769949614256,0.01451632,2400.9,2399.9,0.15729891]
[1769949616061,0.01451632,2400.8,2399.9,0.15729891]
[1769949618151,4.9426867,2400.9,2399.6,0.15604088]
[1769949618152,0.01481816,2400.6,2399.6,0.15604088]
[1769949618556,0.01481816,2400.3,2399.4,0.15604088]
[1769949620558,3.463,2400.5,2399.4,0.15604088]
[1769949620756,4.9426867,2400.8,2399.6,0.15563446]
[1769949620962,4.94670951,2401.1,2399.8,0.15563446]
[1769949622059,4.96234052,2401.1,2399.8,0.15563446]
[1769949624458,4.94670951,2401.1,2399.8,0.15563446]
[1769949624660,0.0281305,2401.0,2399.8,0.15563446]